[Event "NJSK 2018 Jeugd C"]
[Site "Assen, Netherlands"]
[Date "2018.05.01"]
[Round "4.5"]
[White "Klaren, Duncan"]
[Black "Cchung, Nyuk Lyn"]
[Result "1-0"]
[TimeControl "40/90m+30sec/move"]
[WhiteElo "1713"]
[BlackElo "1796"]

1. e4 {[%clk 01:30:54]} {[%emt 00:00:06]} c5 {[%clk 01:30:55]} {[%emt
00:00:05]} 2. Nf3 {[%clk 01:31:20]} {[%emt 00:00:03]} d6 {[%clk 01:31:18]}
{[%emt 00:00:07]} 3. d4 {[%clk 01:31:40]} {[%emt 00:00:10]} cxd4 {[%clk
01:31:41]} {[%emt 00:00:07]} 4. Nxd4 {[%clk 01:32:06]} {[%emt 00:00:05]} a6
{[%clk 01:32:06]} {[%emt 00:00:19]} 5. c4 {[%clk 01:32:01]} {[%emt 00:00:30]}
Nf6 {[%clk 01:32:29]} {[%emt 00:00:03]} 6. f3 {[%clk 01:32:16]} {[%emt
00:00:09]} e5 {[%clk 01:32:47]} {[%emt 00:00:12]} 7. Nc2 {[%clk 01:32:37]}
{[%emt 00:00:09]} Be7 {[%clk 01:33:08]} {[%emt 00:00:09]} 8. Nc3 {[%clk
01:32:58]} {[%emt 00:00:09]} Be6 {[%clk 01:33:30]} {[%emt 00:00:08]} 9. Be2
{[%clk 01:32:58]} {[%emt 00:00:30]} Qc7 {[%clk 01:33:31]} {[%emt 00:00:30]} 10.
b3 {[%clk 01:33:16]} {[%emt 00:00:12]} b5 {[%clk 01:33:11]} {[%emt 00:00:50]}
11. Nd5 {[%clk 01:33:25]} {[%emt 00:00:21]} Bxd5 {[%clk 01:33:22]} {[%emt
00:00:18]} 12. cxd5 {[%clk 01:33:50]} {[%emt 00:00:05]} O-O {[%clk 01:32:52]}
{[%emt 00:01:00]} 13. Be3 {[%clk 01:34:05]} {[%emt 00:00:14]} Rc8 {[%clk
01:31:18]} {[%emt 00:02:05]} 14. Rc1 {[%clk 01:34:17]} {[%emt 00:00:18]} Qa5+
{[%clk 01:30:42]} {[%emt 00:01:05]} 15. Bd2 {[%clk 01:30:02]} {[%emt 00:04:44]}
Qb6 {[%clk 01:29:37]} {[%emt 00:01:37]} 16. Be3 {[%clk 01:29:46]} {[%emt
00:00:45]} Qa5+ {[%clk 01:29:49]} {[%emt 00:00:19]} 17. Bd2 {[%clk 01:30:08]}
{[%emt 00:00:07]} Qb6 {[%clk 01:30:09]} {[%emt 00:00:09]} 18. Be3 {[%clk
01:30:29]} {[%emt 00:00:09]} Qa5+ {[%clk 01:29:37]} {[%emt 00:01:03]} 19. Bd2
{[%clk 01:30:50]} {[%emt 00:00:08]} Qd8 {[%clk 01:30:06]} {[%emt 00:00:02]} 20.
O-O {[%clk 01:30:39]} {[%emt 00:00:41]} Nbd7 {[%clk 01:28:15]} {[%emt
00:02:20]} 21. Be3 {[%clk 01:29:28]} {[%emt 00:01:41]} Qa5 {[%clk 01:22:50]}
{[%emt 00:05:55]} 22. Bd2 {[%clk 01:15:54]} {[%emt 00:14:05]} Qxa2 {[%clk
01:14:31]} {[%emt 00:08:48]} 23. Nb4 {[%clk 01:15:09]} {[%emt 00:01:15]} Qa5
{[%clk 01:14:48]} {[%emt 00:00:13]} 24. Kh1 {[%clk 01:10:51]} {[%emt 00:04:49]}
Qb6 {[%clk 01:09:54]} {[%emt 00:05:23]} 25. Nc6 {[%clk 01:09:53]} {[%emt
00:01:28]} Bf8 {[%clk 01:09:04]} {[%emt 00:01:20]} 26. b4 {[%clk 01:09:15]}
{[%emt 00:01:08]} Rc7 {[%clk 01:06:44]} {[%emt 00:02:50]} 27. Qb3 {[%clk
01:08:13]} {[%emt 00:01:32]} Rac8 {[%clk 01:05:25]} {[%emt 00:01:49]} 28. Be3
{[%clk 01:07:58]} {[%emt 00:00:45]} Qb7 {[%clk 01:05:27]} {[%emt 00:00:28]} 29.
Rc2 {[%clk 01:07:42]} {[%emt 00:00:46]} Nb8 {[%clk 01:05:06]} {[%emt 00:00:51]}
30. Na5 {[%clk 01:07:18]} {[%emt 00:00:53]} Qa8 {[%clk 01:04:55]} {[%emt
00:00:42]} 31. Rfc1 {[%clk 01:05:30]} {[%emt 00:02:18]} Rxc2 {[%clk 00:59:41]}
{[%emt 00:05:45]} 32. Rxc2 {[%clk 01:05:40]} {[%emt 00:00:21]} Nbd7 {[%clk
01:00:03]} {[%emt 00:00:07]} 33. Rc6 {[%clk 01:03:23]} {[%emt 00:02:47]} Be7
{[%clk 00:54:52]} {[%emt 00:05:41]} 34. Qc2 {[%clk 01:00:07]} {[%emt 00:03:47]}
Re8 {[%clk 00:50:34]} {[%emt 00:04:48]} 35. Rc7 {[%clk 00:59:45]} {[%emt
00:00:52]} h6 {[%clk 00:43:09]} {[%emt 00:07:55]} 36. Nc6 {[%clk 00:59:52]}
{[%emt 00:00:23]} Bd8 {[%clk 00:40:28]} {[%emt 00:03:11]} 37. Ra7 {[%clk
00:59:54]} {[%emt 00:00:28]} Qc8 {[%clk 00:39:53]} {[%emt 00:01:05]} 38. Qa2
{[%clk 00:59:07]} {[%emt 00:01:18]} Bb6 {[%clk 00:27:13]} {[%emt 00:13:08]} 39.
Bxb6 {[%clk 00:59:00]} {[%emt 00:00:37]} Nxb6 {[%clk 00:27:33]} {[%emt
00:00:11]} 40. Rxa6 {[%clk 00:57:34]} {[%emt 00:01:56]} Nbxd5 {[%clk 00:21:23]}
{[%emt 00:06:39]} 41. exd5 {[%clk 00:56:36]} {[%emt 00:01:28]} Nxd5 {[%clk
00:21:51]} {[%emt 00:00:02]} 42. Bxb5 {[%clk 00:56:05]} {[%emt 00:01:01]} Nxb4
{[%clk 00:16:59]} {[%emt 00:05:22]} 43. Qc4 {[%clk 00:55:53]} {[%emt 00:00:42]}
Nxc6 {[%clk 00:15:31]} {[%emt 00:01:58]} 44. Rxc6 {[%clk 00:56:03]} {[%emt
00:00:20]} Qb7 {[%clk 00:11:58]} {[%emt 00:04:03]} 45. Rc7 {[%clk 00:56:11]}
{[%emt 00:00:22]} 1-0

[Event "NJSK 2018 Jeugd C"]
[Site "Assen, Netherlands"]
[Date "2018.05.01"]
[Round "4.6"]
[White "Bartels, Vladimir"]
[Black "Van Foreest, Nanne"]
[Result "1/2-1/2"]
[TimeControl "40/90m+30sec/move"]
[WhiteElo "1757"]
[BlackElo "1482"]

1. e4 {[%clk 01:30:05]} {[%emt 00:01:03]} e5 {[%clk 01:30:57]} {[%emt
00:00:09]} 2. Nf3 {[%clk 01:30:30]} {[%emt 00:00:08]} Nc6 {[%clk 01:31:21]}
{[%emt 00:00:05]} 3. Bb5 {[%clk 01:30:53]} {[%emt 00:00:06]} Nf6 {[%clk
01:31:43]} {[%emt 00:00:03]} 4. O-O {[%clk 01:31:16]} {[%emt 00:00:05]} Nxe4
{[%clk 01:32:09]} {[%emt 00:00:04]} 5. d4 {[%clk 01:31:36]} {[%emt 00:00:04]}
Nd6 {[%clk 01:32:26]} {[%emt 00:00:11]} 6. Bxc6 {[%clk 01:31:50]} {[%emt
00:00:16]} dxc6 {[%clk 01:32:27]} {[%emt 00:00:29]} 7. dxe5 {[%clk 01:32:06]}
{[%emt 00:00:14]} Nf5 {[%clk 01:32:47]} {[%emt 00:00:10]} 8. Qxd8+ {[%clk
01:32:28]} {[%emt 00:00:09]} Kxd8 {[%clk 01:33:14]} {[%emt 00:00:03]} 9. h3
{[%clk 01:32:36]} {[%emt 00:00:22]} Be7 {[%clk 01:33:17]} {[%emt 00:00:27]} 10.
g4 {[%clk 01:28:54]} {[%emt 00:04:11]} Nh4 {[%clk 01:33:03]} {[%emt 00:00:44]}
11. Nxh4 {[%clk 01:25:41]} {[%emt 00:03:43]} Bxh4 {[%clk 01:33:22]} {[%emt
00:00:11]} 12. Rd1+ {[%clk 01:25:51]} {[%emt 00:00:20]} Ke7 {[%clk 01:33:47]}
{[%emt 00:00:05]} 13. Be3 {[%clk 01:25:55]} {[%emt 00:00:26]} Be6 {[%clk
01:34:03]} {[%emt 00:00:14]} 14. Nc3 {[%clk 01:25:25]} {[%emt 00:01:01]} f6
{[%clk 01:34:04]} {[%emt 00:00:28]} 15. Bc5+ {[%clk 01:20:32]} {[%emt
00:05:23]} Kf7 {[%clk 01:33:14]} {[%emt 00:01:20]} 16. exf6 {[%clk 01:17:47]}
{[%emt 00:03:15]} Bxf6 {[%clk 01:33:26]} {[%emt 00:00:19]} 17. Ne4 {[%clk
01:15:13]} {[%emt 00:03:04]} Bd5 {[%clk 01:32:02]} {[%emt 00:01:54]} 18. Nxf6
{[%clk 01:11:44]} {[%emt 00:03:58]} gxf6 {[%clk 01:32:14]} {[%emt 00:00:18]} 19.
f4 {[%clk 00:55:14]} {[%emt 00:17:00]} f5 {[%clk 01:28:52]} {[%emt 00:03:51]}
20. Bd4 {[%clk 00:42:15]} {[%emt 00:13:28]} Rhe8 {[%clk 01:27:03]} {[%emt
00:02:20]} 21. Be5 {[%clk 00:40:57]} {[%emt 00:01:49]} 1/2-1/2

[Event "NJSK 2018 Jeugd C"]
[Site "Assen, Netherlands"]
[Date "2018.05.01"]
[Round "4.7"]
[White "Labruyere, Roger"]
[Black "Boghossian, Wahe"]
[Result "0-1"]
[TimeControl "40/90m+30sec/move"]
[WhiteElo "1665"]
[BlackElo "1748"]

1. e4 {[%clk 01:30:55]} {[%emt 00:00:04]} c5 {[%clk 01:30:48]} {[%emt
00:00:14]} 2. Nf3 {[%emt 00:00:17]} d6 {[%clk 01:31:02]} {[%emt 00:00:02]} 3.
d4 {[%clk 01:31:46]} {[%emt 00:00:06]} cxd4 {[%clk 01:31:29]} {[%emt 00:00:10]}
4. Nxd4 {[%clk 01:32:12]} {[%emt 00:00:09]} a6 {[%clk 01:31:40]} {[%emt
00:00:21]} 5. Nc3 {[%clk 01:32:34]} {[%emt 00:00:04]} Nf6 {[%clk 01:32:00]}
{[%emt 00:00:08]} 6. Bg5 {[%clk 01:32:59]} {[%emt 00:00:03]} Nbd7 {[%clk
01:31:45]} {[%emt 00:00:39]} 7. Bc4 {[%clk 01:33:16]} {[%emt 00:00:13]} g6
{[%clk 01:31:26]} {[%emt 00:00:50]} 8. f4 {[%clk 01:32:03]} {[%emt 00:01:42]}
Bg7 {[%clk 01:31:19]} {[%emt 00:00:37]} 9. Qd2 {[%clk 01:29:31]} {[%emt
00:03:02]} O-O {[%clk 01:29:51]} {[%emt 00:01:57]} 10. O-O-O {[%clk 01:29:56]}
{[%emt 00:00:05]} Nc5 {[%clk 01:28:42]} {[%emt 00:01:39]} 11. Bxf6 {[%clk
01:24:53]} {[%emt 00:05:32]} Bxf6 {[%clk 01:28:34]} {[%emt 00:00:40]} 12. b4
{[%clk 01:25:08]} {[%emt 00:00:15]} Nd7 {[%clk 01:26:48]} {[%emt 00:02:16]} 13.
g4 {[%clk 01:24:18]} {[%emt 00:01:20]} e5 {[%clk 01:25:43]} {[%emt 00:01:35]}
14. Nde2 {[%clk 01:23:03]} {[%emt 00:01:45]} exf4 {[%clk 01:22:48]} {[%emt
00:03:26]} 15. Qxd6 {[%clk 01:16:32]} {[%emt 00:07:00]} f3 {[%clk 01:16:34]}
{[%emt 00:06:45]} 16. Nd4 {[%clk 01:14:03]} {[%emt 00:02:57]} Be5 {[%clk
01:15:31]} {[%emt 00:01:33]} 17. Qd5 {[%clk 01:13:58]} {[%emt 00:00:34]} Qc7
{[%clk 01:11:42]} {[%emt 00:04:21]} 18. Na4 {[%clk 01:09:45]} {[%emt 00:04:42]}
b5 {[%clk 01:09:22]} {[%emt 00:02:51]} 19. Qxa8 {[%clk 01:08:52]} {[%emt
00:01:22]} Qxc4 {[%clk 01:08:57]} {[%emt 00:00:55]} 20. Nb2 {[%emt 00:06:28]}
Qxa2 {[%clk 01:04:16]} {[%emt 00:05:09]} 21. c3 {[%clk 01:02:57]} {[%emt
00:00:30]} Nb6 {[%clk 01:02:24]} {[%emt 00:02:21]} 22. Qc6 {[%clk 01:02:09]}
{[%emt 00:01:19]} Bf4+ {[%clk 01:01:43]} {[%emt 00:01:11]} 23. Kc2 {[%emt
00:02:54]} Nc4 {[%clk 00:57:55]} {[%emt 00:02:06]} 24. Rb1 {[%clk 01:01:45]}
{[%emt 00:00:43]} Na3+ {[%clk 00:57:40]} {[%emt 00:00:46]} 25. Kd3 {[%clk
00:58:36]} {[%emt 00:03:37]} Nxb1 {[%clk 00:57:50]} {[%emt 00:00:21]} 26. Nxf3
{[%clk 00:55:44]} {[%emt 00:03:20]} Qxb2 {[%clk 00:56:05]} {[%emt 00:02:16]} 27.
Qf6 {[%clk 00:55:29]} {[%emt 00:00:45]} Qg2 {[%clk 00:53:04]} {[%emt 00:03:28]}
28. Rxb1 {[%clk 00:55:02]} {[%emt 00:00:59]} Qxf3+ {[%emt 00:00:11]} 29. Kc2
{[%clk 00:55:21]} {[%emt 00:00:08]} Qe2+ {[%clk 00:53:28]} {[%emt 00:00:27]} 30.
Kb3 {[%clk 00:55:14]} {[%emt 00:00:38]} Be6+ {[%clk 00:53:54]} {[%emt
00:00:05]} 31. c4 {[%clk 00:55:31]} {[%emt 00:00:13]} Bxc4+ {[%clk 00:53:54]}
{[%emt 00:00:29]} 32. Ka3 {[%clk 00:53:11]} {[%emt 00:02:50]} Qa2# {[%clk
00:54:15]} {[%emt 00:00:09]} 0-1

[Event "NJSK 2018 Jeugd C"]
[Site "Assen, Netherlands"]
[Date "2018.05.01"]
[Round "4.8"]
[White "Yeh, Timo"]
[Black "Brandsma, Romayn"]
[Result "1/2-1/2"]
[TimeControl "40/90m+30sec/move"]
[WhiteElo "1729"]
[BlackElo "1715"]

1. d4 {[%clk 01:30:38]} {[%emt 00:00:22]} Nf6 {[%clk 01:30:55]} {[%emt
00:00:05]} 2. Nf3 {[%clk 01:30:26]} {[%emt 00:00:53]} e6 {[%clk 01:31:16]}
{[%emt 00:00:06]} 3. c4 {[%clk 01:30:52]} {[%emt 00:00:04]} b6 {[%clk
01:31:41]} {[%emt 00:00:02]} 4. Nc3 {[%clk 01:31:19]} {[%emt 00:00:01]} Bb4
{[%clk 01:31:49]} {[%emt 00:00:19]} 5. Bd2 {[%clk 01:31:44]} {[%emt 00:00:05]}
Bb7 {[%clk 01:31:29]} {[%emt 00:00:50]} 6. e3 {[%clk 01:32:05]} {[%emt
00:00:09]} O-O {[%clk 01:31:06]} {[%emt 00:00:53]} 7. a3 {[%clk 01:32:06]}
{[%emt 00:00:29]} Bxc3 {[%clk 01:31:08]} {[%emt 00:00:28]} 8. Bxc3 {[%clk
01:32:34]} {[%emt 00:00:03]} d5 {[%clk 01:31:18]} {[%emt 00:00:19]} 9. Bb4
{[%clk 01:31:31]} {[%emt 00:01:34]} Re8 {[%clk 01:31:14]} {[%emt 00:00:33]} 10.
Rc1 {[%clk 01:30:25]} {[%emt 00:01:37]} Nbd7 {[%clk 01:29:03]} {[%emt
00:02:41]} 11. Be2 {[%clk 01:27:09]} {[%emt 00:03:45]} Rc8 {[%clk 01:28:13]}
{[%emt 00:01:19]} 12. c5 {[%clk 01:26:24]} {[%emt 00:01:16]} c6 {[%clk
01:26:23]} {[%emt 00:02:20]} 13. O-O {[%emt 00:02:26]} Ne4 14. Nd2 Nxd2 15.
Bxd2 e5 16. Bg4 Rb8 17. Bxd7 Qxd7 18. b4 Ba6 19. Re1 e4 20. cxb6 axb6 21. h3
Bc4 22. Qg4 Qxg4 23. hxg4 b5 24. f4 Ra8 25. Rc3 Ra4 26. Bc1 h6 27. g3 Re6 28.
Kg2 Rd6 1/2-1/2

[Event "NJSK 2018 Jeugd C"]
[Site "Assen, Netherlands"]
[Date "2018.05.01"]
[Round "4.9"]
[White "Van der Schaaf, Tristan"]
[Black "Van der Hagen, Loek"]
[Result "0-1"]
[TimeControl "40/90m+30sec/move"]
[WhiteElo "1647"]
[BlackElo "1815"]

1. d4 {[%clk 01:30:57]} {[%emt 00:00:02]} Nf6 {[%clk 01:30:55]} {[%emt
00:00:05]} 2. c4 {[%clk 01:31:20]} {[%emt 00:00:07]} c5 {[%clk 01:31:17]}
{[%emt 00:00:09]} 3. d5 {[%clk 01:31:43]} {[%emt 00:00:06]} b5 {[%clk
01:31:40]} {[%emt 00:00:15]} 4. cxb5 {[%clk 01:32:07]} {[%emt 00:00:15]} a6
{[%clk 01:32:06]} {[%emt 00:00:05]} 5. bxa6 {[%clk 01:32:28]} {[%emt 00:00:05]}
Bxa6 {[%clk 01:32:30]} {[%emt 00:00:05]} 6. Nc3 {[%clk 01:32:50]} {[%emt
00:00:04]} d6 {[%clk 01:32:51]} {[%emt 00:00:07]} 7. e4 {[%clk 01:32:47]}
{[%emt 00:00:27]} Bxf1 {[%clk 01:33:12]} {[%emt 00:00:09]} 8. Kxf1 {[%clk
01:33:09]} {[%emt 00:00:07]} g6 {[%clk 01:33:35]} {[%emt 00:00:07]} 9. g3
{[%clk 01:33:33]} {[%emt 00:00:06]} Bg7 {[%clk 01:34:01]} {[%emt 00:00:04]} 10.
Kg2 {[%clk 01:33:54]} {[%emt 00:00:09]} O-O {[%clk 01:34:26]} {[%emt 00:00:06]}
11. Nf3 {[%clk 01:33:49]} {[%emt 00:00:35]} Nbd7 {[%clk 01:34:50]} {[%emt
00:00:06]} 12. a4 {[%clk 01:33:49]} {[%emt 00:00:30]} Ng4 {[%clk 01:34:44]}
{[%emt 00:00:36]} 13. Qc2 {[%clk 01:23:26]} {[%emt 00:10:52]} Nge5 {[%clk
01:34:52]} {[%emt 00:00:22]} 14. Nd2 {[%clk 01:21:39]} {[%emt 00:02:17]} Qa5
{[%clk 01:34:12]} {[%emt 00:01:10]} 15. f4 {[%clk 01:19:34]} {[%emt 00:02:35]}
Ng4 {[%clk 01:33:34]} {[%emt 00:01:08]} 16. Nc4 {[%clk 01:19:22]} {[%emt
00:00:42]} Qb4 {[%clk 01:32:32]} {[%emt 00:01:31]} 17. Nb5 {[%clk 01:13:17]}
{[%emt 00:06:35]} Bxb2 {[%clk 01:10:11]} {[%emt 00:22:51]} 18. Nxb2 {[%clk
01:12:28]} {[%emt 00:01:19]} Rfb8 {[%clk 01:08:01]} {[%emt 00:02:40]} 19. Bd2
{[%clk 01:05:38]} {[%emt 00:07:21]} c4 {[%clk 00:55:50]} {[%emt 00:12:41]} 20.
Kf3 {[%clk 01:02:37]} {[%emt 00:03:31]} Qc5 {[%clk 00:53:43]} {[%emt 00:02:38]}
21. Kxg4 {[%clk 01:01:17]} {[%emt 00:01:51]} Qf2 {[%clk 00:52:26]} {[%emt
00:01:46]} 22. Raf1 {[%clk 00:50:38]} {[%emt 00:11:10]} Qg2 {[%clk 00:52:46]}
{[%emt 00:00:09]} 23. Nc3 {[%clk 00:36:18]} {[%emt 00:14:50]} Nf6+ {[%clk
00:50:04]} {[%emt 00:03:11]} 24. Kh4 {[%clk 00:29:29]} {[%emt 00:07:19]} h6
{[%clk 00:44:41]} {[%emt 00:05:53]} 25. Rc1 {[%clk 00:25:29]} {[%emt 00:04:30]}
Kg7 {[%clk 00:36:57]} {[%emt 00:08:13]} 26. Be1 {[%clk 00:09:15]} {[%emt
00:16:45]} g5 {[%clk 00:33:56]} {[%emt 00:03:31]} 27. fxg5 {[%clk 00:09:40]}
{[%emt 00:00:05]} hxg5 {[%clk 00:34:20]} {[%emt 00:00:06]} 28. Kxg5 {[%clk
00:10:08]} {[%emt 00:00:02]} Qf3 {[%clk 00:33:37]} {[%emt 00:01:13]} 29. Qe2
{[%clk 00:09:53]} {[%emt 00:00:45]} Nxe4+ {[%clk 00:33:35]} {[%emt 00:00:32]}
30. Qxe4 {[%clk 00:09:36]} {[%emt 00:00:47]} f6+ {[%clk 00:33:57]} {[%emt
00:00:07]} 0-1

[Event "NJSK 2018 Jeugd C"]
[Site "Assen, Netherlands"]
[Date "2018.05.01"]
[Round "4.10"]
[White "Catalan, Ciro"]
[Black "Torensma, Christian"]
[Result "1-0"]
[TimeControl "40/90m+30sec/move"]
[WhiteElo "1503"]
[BlackElo "1455"]

1. d4 {[%clk 01:30:55]} {[%emt 00:00:04]} e6 {[%clk 01:30:57]} {[%emt
00:00:05]} 2. c4 {[%clk 01:31:16]} {[%emt 00:00:09]} f5 {[%clk 01:31:21]}
{[%emt 00:00:05]} 3. g3 {[%clk 01:31:21]} {[%emt 00:00:43]} Nf6 {[%clk
01:31:44]} {[%emt 00:00:05]} 4. Nf3 {[%clk 01:31:41]} {[%emt 00:00:09]} Be7
{[%clk 01:32:08]} 5. Bg2 {[%clk 01:32:01]} {[%emt 00:00:08]} O-O {[%clk
01:32:32]} {[%emt 00:00:04]} 6. O-O {[%clk 01:32:23]} {[%emt 00:00:04]} d6
{[%clk 01:32:57]} {[%emt 00:00:05]} 7. Nbd2 {[%clk 01:32:19]} {[%emt 00:00:34]}
Qe8 {[%clk 01:33:13]} {[%emt 00:00:14]} 8. Qc2 {[%clk 01:32:24]} {[%emt
00:00:24]} Qh5 {[%clk 01:32:28]} {[%emt 00:01:15]} 9. e4 {[%clk 01:30:08]}
{[%emt 00:02:46]} fxe4 {[%clk 01:31:44]} {[%emt 00:01:14]} 10. Nxe4 {[%clk
01:30:25]} {[%emt 00:00:12]} Nxe4 {[%clk 01:28:41]} {[%emt 00:03:34]} 11. Qxe4
{[%clk 01:30:53]} {[%emt 00:00:02]} h6 {[%clk 01:25:15]} {[%emt 00:03:56]} 12.
b3 {[%clk 01:19:41]} {[%emt 00:11:42]} a5 {[%clk 01:23:49]} {[%emt 00:01:57]}
13. Bb2 {[%clk 01:16:06]} {[%emt 00:04:04]} Na6 {[%clk 01:22:06]} {[%emt
00:02:13]} 14. a3 {[%clk 01:11:22]} {[%emt 00:05:14]} Bf6 {[%clk 01:19:39]}
{[%emt 00:02:57]} 15. Rfe1 {[%clk 01:07:55]} {[%emt 00:03:56]} d5 {[%clk
01:13:12]} {[%emt 00:06:57]} 16. Qc2 {[%clk 01:04:23]} {[%emt 00:04:01]} c6
{[%clk 01:06:22]} {[%emt 00:07:20]} 17. Ne5 {[%clk 00:57:05]} {[%emt 00:07:48]}
Bxe5 {[%clk 01:02:34]} {[%emt 00:04:19]} 18. Rxe5 {[%clk 00:57:26]} {[%emt
00:00:09]} Qf7 {[%clk 01:02:22]} {[%emt 00:00:42]} 19. Rae1 {[%clk 00:55:34]}
{[%emt 00:02:21]} Nc7 {[%clk 00:58:50]} {[%emt 00:04:04]} 20. Bh3 {[%clk
00:49:27]} {[%emt 00:06:36]} Re8 {[%clk 00:57:52]} {[%emt 00:01:29]} 21. Qe2
{[%clk 00:46:08]} {[%emt 00:03:48]} Bd7 {[%clk 00:55:06]} {[%emt 00:03:18]} 22.
Bc1 {[%clk 00:43:09]} {[%emt 00:03:28]} Rac8 {[%clk 00:46:51]} {[%emt
00:08:44]} 23. Bf4 {[%clk 00:36:11]} {[%emt 00:07:26]} Qe7 {[%clk 00:40:06]}
{[%emt 00:07:17]} 24. Qb2 {[%clk 00:27:50]} {[%emt 00:08:50]} Qf7 {[%clk
00:40:00]} {[%emt 00:00:37]} 25. R5e3 {[%clk 00:23:39]} {[%emt 00:04:39]} g5
{[%clk 00:36:29]} {[%emt 00:04:02]} 26. Bd6 {[%clk 00:18:59]} {[%emt 00:05:07]}
b5 {[%clk 00:35:26]} {[%emt 00:01:36]} 27. c5 {[%clk 00:17:53]} {[%emt
00:01:36]} Qh5 {[%clk 00:34:03]} {[%emt 00:01:52]} 28. Bxc7 {[%clk 00:13:31]}
{[%emt 00:04:53]} Rxc7 {[%clk 00:30:05]} {[%emt 00:04:28]} 29. Bxe6+ {[%clk
00:11:31]} {[%emt 00:02:29]} Bxe6 {[%clk 00:30:31]} {[%emt 00:00:05]} 30. Rxe6
{[%clk 00:11:40]} {[%emt 00:00:21]} Rxe6 {[%clk 00:30:46]} {[%emt 00:00:15]} 31.
Rxe6 {[%clk 00:12:04]} {[%emt 00:00:05]} Rf7 {[%clk 00:30:10]} {[%emt
00:01:07]} 32. Qc2 {[%clk 00:11:00]} {[%emt 00:01:34]} Rc7 {[%clk 00:28:44]}
{[%emt 00:01:56]} 33. Rg6+ {[%clk 00:08:15]} {[%emt 00:03:15]} Rg7 {[%clk
00:27:37]} {[%emt 00:01:37]} 34. Rxc6 {[%clk 00:07:23]} {[%emt 00:01:22]} Qe8
{[%clk 00:27:41]} {[%emt 00:00:26]} 35. Rd6 {[%clk 00:06:49]} {[%emt 00:01:04]}
Qe1+ {[%clk 00:27:23]} {[%emt 00:00:48]} 36. Kg2 {[%clk 00:07:11]} {[%emt
00:00:08]} 1-0